[Event "*** SCC Grand Prix: Titled Tuesday Blitz"]
[Site "Chess.com"]
[Date "2020.08.25"]
[Round "4"]
[White "fabianvivasz"]
[Black "Steven_Rojas"]
[Result "1-0"]
[WhiteElo "2320"]
[BlackElo "2481"]
[TimeControl "180+1"]
[EndTime "10:40:04 PDT"]
[Termination "fabianvivasz won by checkmate"]

1. e4 {[%clk 0:02:57.8]} 1... e6 {[%clk 0:02:59.2]} 2. d4 {[%clk 0:02:57]} 2...
d5 {[%clk 0:02:59.4]} 3. Nd2 {[%clk 0:02:57]} 3... dxe4 {[%clk 0:02:59.1]} 4.
Nxe4 {[%clk 0:02:57.9]} 4... Nd7 {[%clk 0:02:59.6]} 5. Nf3 {[%clk 0:02:53.1]}
5... Ngf6 {[%clk 0:02:59.9]} 6. Nxf6+ {[%clk 0:02:52.4]} 6... Nxf6 {[%clk
0:03:00.8]} 7. Ne5 {[%clk 0:02:52.4]} 7... c5 {[%clk 0:02:46.7]} 8. Bb5+ {[%clk
0:02:41.7]} 8... Nd7 {[%clk 0:02:44]} 9. O-O {[%clk 0:02:38.1]} 9... Be7 {[%clk
0:01:59.4]} 10. dxc5 {[%clk 0:02:23.4]} 10... Bxc5 {[%clk 0:01:50.6]} 11. Qf3
{[%clk 0:01:17]} 11... O-O {[%clk 0:01:50]} 12. Bxd7 {[%clk 0:01:12.1]} 12...
Bxd7 {[%clk 0:01:20.9]} 13. Rd1 {[%clk 0:01:11.9]} 13... Qa5 {[%clk 0:01:16]}
14. Nxd7 {[%clk 0:01:08]} 14... Rfd8 {[%clk 0:01:16.1]} 15. Bg5 {[%clk
0:01:05.3]} 15... Bxf2+ {[%clk 0:01:13.5]} 16. Qxf2 {[%clk 0:00:59.6]} 16...
Qxg5 {[%clk 0:01:14.4]} 17. Rd3 {[%clk 0:00:57.1]} 17... Rac8 {[%clk 0:01:08.6]}
18. Rf1 {[%clk 0:00:40.5]} 18... f6 {[%clk 0:01:06.8]} 19. Rg3 {[%clk
0:00:38.3]} 19... Rxd7 {[%clk 0:00:51.5]} 20. Rxg5 {[%clk 0:00:36.8]} 20... fxg5
{[%clk 0:00:52.4]} 21. Qxa7 {[%clk 0:00:32.4]} 21... h6 {[%clk 0:00:52.8]} 22.
c3 {[%clk 0:00:31.4]} 22... Rd2 {[%clk 0:00:51.4]} 23. Qxb7 {[%clk 0:00:30.3]}
23... Rcd8 {[%clk 0:00:49.6]} 24. h3 {[%clk 0:00:25.5]} 24... R8d7 {[%clk
0:00:47.8]} 25. Qc8+ {[%clk 0:00:23.4]} 25... Kh7 {[%clk 0:00:47.9]} 26. Rf8
{[%clk 0:00:21.3]} 26... Re7 {[%clk 0:00:40.3]} 27. Rh8+ {[%clk 0:00:19.2]}
27... Kg6 {[%clk 0:00:41]} 28. Re8 {[%clk 0:00:18.9]} 28... Rf7 {[%clk
0:00:38.4]} 29. Qxe6+ {[%clk 0:00:18.2]} 29... Rf6 {[%clk 0:00:38.4]} 30. Qe4+
{[%clk 0:00:18.4]} 30... Kf7 {[%clk 0:00:38]} 31. Re7+ {[%clk 0:00:18.3]} 31...
Kf8 {[%clk 0:00:38.5]} 32. Rb7 {[%clk 0:00:16.5]} 32... Rff2 {[%clk 0:00:36.9]}
33. Qe7+ {[%clk 0:00:16.3]} 33... Kg8 {[%clk 0:00:36.8]} 34. Qxg7# {[%clk
0:00:17.2]} 1-0

[Event "*** SCC Grand Prix: Titled Tuesday Blitz"]
[Site "Chess.com"]
[Date "2020.08.25"]
[Round "4"]
[White "sertalzin"]
[Black "politeplayer"]
[Result "0-1"]
[WhiteElo "1869"]
[BlackElo "2207"]
[TimeControl "180+1"]
[EndTime "10:40:04 PDT"]
[Termination "politeplayer won on time"]

1. d4 {[%clk 0:03:00.9]} 1... Nf6 {[%clk 0:02:58.1]} 2. c4 {[%clk 0:03:00.1]}
2... g6 {[%clk 0:02:58.5]} 3. Nc3 {[%clk 0:02:59.4]} 3... Bg7 {[%clk 0:02:58.9]}
4. e4 {[%clk 0:02:59]} 4... d6 {[%clk 0:02:59.3]} 5. f4 {[%clk 0:02:58.7]} 5...
O-O {[%clk 0:02:59.8]} 6. Nf3 {[%clk 0:02:58.4]} 6... c5 {[%clk 0:02:59.8]} 7.
d5 {[%clk 0:02:58.2]} 7... e6 {[%clk 0:02:59.5]} 8. Be2 {[%clk 0:02:57.4]} 8...
exd5 {[%clk 0:02:57.8]} 9. cxd5 {[%clk 0:02:57.3]} 9... Bg4 {[%clk 0:02:50.3]}
10. O-O {[%clk 0:02:56.3]} 10... Bxf3 {[%clk 0:02:45.2]} 11. Bxf3 {[%clk
0:02:55.7]} 11... Nbd7 {[%clk 0:02:45.8]} 12. g4 {[%clk 0:02:55.4]} 12... c4
{[%clk 0:02:42.4]} 13. g5 {[%clk 0:02:54.5]} 13... Qb6+ {[%clk 0:02:40.2]} 14.
Kg2 {[%clk 0:02:52.1]} 14... Ne8 {[%clk 0:02:37.4]} 15. Qe2 {[%clk 0:02:36.8]}
15... Rc8 {[%clk 0:02:30.9]} 16. Be3 {[%clk 0:02:29]} 16... Qa6 {[%clk
0:02:20.7]} 17. h4 {[%clk 0:02:24.4]} 17... b5 {[%clk 0:02:17.2]} 18. Qc2 {[%clk
0:01:57.9]} 18... b4 {[%clk 0:02:01.3]} 19. Ne2 {[%clk 0:01:57.2]} 19... Nc5
{[%clk 0:01:53.9]} 20. Bd4 {[%clk 0:00:57]} 20... b3 {[%clk 0:01:34.4]} 21. axb3
{[%clk 0:00:47.7]} 21... cxb3 {[%clk 0:01:31.3]} 22. Qxc5 {[%clk 0:00:35.8]}
22... Qxe2+ {[%clk 0:01:30]} 23. Bxe2 {[%clk 0:00:34.7]} 23... dxc5 {[%clk
0:01:30.2]} 24. Bxg7 {[%clk 0:00:33.8]} 24... Nxg7 {[%clk 0:01:30.3]} 25. Rxa7
{[%clk 0:00:30.3]} 25... Rfe8 {[%clk 0:01:28.7]} 26. Bf3 {[%clk 0:00:22.7]}
26... c4 {[%clk 0:01:21.3]} 27. Rc1 {[%clk 0:00:17.9]} 27... Nh5 {[%clk
0:01:17.8]} 28. Bxh5 {[%clk 0:00:15.1]} 28... gxh5 {[%clk 0:01:14.8]} 29. Kf3
{[%clk 0:00:14.8]} 29... Rc5 {[%clk 0:01:08.2]} 30. d6 {[%clk 0:00:10]} 30...
Rd8 {[%clk 0:01:05.7]} 31. e5 {[%clk 0:00:08.1]} 31... Rd5 {[%clk 0:00:55.1]}
32. Rxc4 {[%clk 0:00:06.1]} 32... Rd2 {[%clk 0:00:55.5]} 0-1

[Event "*** SCC Grand Prix: Titled Tuesday Blitz"]
[Site "Chess.com"]
[Date "2020.08.25"]
[Round "4"]
[White "stolencandy13"]
[Black "vugarrasulov"]
[Result "0-1"]
[WhiteElo "2504"]
[BlackElo "2820"]
[TimeControl "180+1"]
[EndTime "10:40:05 PDT"]
[Termination "vugarrasulov won by resignation"]

1. e4 {[%clk 0:03:00.9]} 1... c5 {[%clk 0:02:58.1]} 2. Nf3 {[%clk 0:03:01.1]}
2... g6 {[%clk 0:02:56.6]} 3. c4 {[%clk 0:02:58.5]} 3... Nc6 {[%clk 0:02:56.2]}
4. d4 {[%clk 0:02:58.5]} 4... cxd4 {[%clk 0:02:57.1]} 5. Nxd4 {[%clk 0:02:59.3]}
5... Nf6 {[%clk 0:02:57.5]} 6. Nc3 {[%clk 0:02:58.8]} 6... d6 {[%clk 0:02:57.8]}
7. Be3 {[%clk 0:02:58.7]} 7... Ng4 {[%clk 0:02:57.2]} 8. Nxc6 {[%clk 0:02:36.4]}
8... bxc6 {[%clk 0:02:58.1]} 9. Bc1 {[%clk 0:02:31.3]} 9... Qb6 {[%clk
0:02:55.3]} 10. Qc2 {[%clk 0:02:24.5]} 10... Be6 {[%clk 0:02:44.4]} 11. h3
{[%clk 0:02:22.5]} 11... Ne5 {[%clk 0:02:44.7]} 12. b3 {[%clk 0:02:17.5]} 12...
Bg7 {[%clk 0:02:44.4]} 13. Be2 {[%clk 0:02:08.7]} 13... O-O {[%clk 0:02:43.9]}
14. O-O {[%clk 0:02:08.3]} 14... f5 {[%clk 0:02:40.7]} 15. Be3 {[%clk 0:02:01]}
15... Qa5 {[%clk 0:02:40.7]} 16. Bd2 {[%clk 0:01:50.9]} 16... Qb6 {[%clk
0:02:25.7]} 17. Be3 {[%clk 0:01:36.6]} 17... Qa5 {[%clk 0:02:25.6]} 18. Bd2
{[%clk 0:01:36.7]} 18... Qd8 {[%clk 0:02:21.2]} 19. f4 {[%clk 0:01:30.4]} 19...
Nd7 {[%clk 0:02:21.3]} 20. Bf3 {[%clk 0:01:27.2]} 20... fxe4 {[%clk 0:02:12.2]}
21. Bxe4 {[%clk 0:01:23.6]} 21... Nf6 {[%clk 0:02:12]} 22. Bf3 {[%clk
0:01:19.7]} 22... d5 {[%clk 0:02:12.1]} 23. cxd5 {[%clk 0:01:18.2]} 23... cxd5
{[%clk 0:02:13]} 24. Rad1 {[%clk 0:01:17.1]} 24... Rc8 {[%clk 0:02:13.1]} 25.
Qd3 {[%clk 0:01:10.1]} 25... Bf5 {[%clk 0:02:04.8]} 26. Qd4 {[%clk 0:00:59.3]}
26... Kh8 {[%clk 0:01:44.6]} 27. Qxa7 {[%clk 0:00:51.5]} 27... d4 {[%clk
0:01:44.8]} 28. Na4 {[%clk 0:00:46.1]} 28... Rc7 {[%clk 0:01:21.6]} 29. Qb6
{[%clk 0:00:42]} 29... Rc2 {[%clk 0:01:02.6]} 30. Qxd8 {[%clk 0:00:37.2]} 30...
Rxd8 {[%clk 0:01:03.5]} 31. Ba5 {[%clk 0:00:35.5]} 31... Rd7 {[%clk 0:01:03.6]}
32. Rf2 {[%clk 0:00:33.9]} 32... d3 {[%clk 0:00:59.6]} 33. Rdd2 {[%clk
0:00:28.4]} 33... Ne4 {[%clk 0:00:49]} 34. Bxe4 {[%clk 0:00:21.2]} 34... Bxe4
{[%clk 0:00:49.9]} 35. Bb4 {[%clk 0:00:17]} 35... Bd4 {[%clk 0:00:47.1]} 36. Kf1
{[%clk 0:00:14]} 36... Rc1+ {[%clk 0:00:46.5]} 0-1

[Event "*** SCC Grand Prix: Titled Tuesday Blitz"]
[Site "Chess.com"]
[Date "2020.08.25"]
[Round "4"]
[White "jacky72"]
[Black "anon569"]
[Result "1-0"]
[WhiteElo "2550"]
[BlackElo "2327"]
[TimeControl "180+1"]
[EndTime "10:40:06 PDT"]
[Termination "jacky72 won on time"]

1. d4 {[%clk 0:03:00.9]} 1... Nf6 {[%clk 0:02:59.6]} 2. c4 {[%clk 0:03:01.3]}
2... e6 {[%clk 0:02:59.7]} 3. Nf3 {[%clk 0:03:01.6]} 3... Bb4+ {[%clk
0:02:56.3]} 4. Bd2 {[%clk 0:03:01.1]} 4... c5 {[%clk 0:02:54.8]} 5. Nc3 {[%clk
0:02:57.3]} 5... b6 {[%clk 0:02:22.4]} 6. a3 {[%clk 0:02:45.8]} 6... Bxc3 {[%clk
0:02:11.8]} 7. Bxc3 {[%clk 0:02:46.7]} 7... Ne4 {[%clk 0:02:01.3]} 8. Qc2 {[%clk
0:02:45.7]} 8... Nxc3 {[%clk 0:01:54.5]} 9. Qxc3 {[%clk 0:02:46.6]} 9... O-O
{[%clk 0:01:51.5]} 10. g3 {[%clk 0:02:45.5]} 10... Bb7 {[%clk 0:01:45.6]} 11.
Bg2 {[%clk 0:02:42.9]} 11... cxd4 {[%clk 0:01:40.9]} 12. Qxd4 {[%clk 0:02:43.8]}
12... Nc6 {[%clk 0:01:40]} 13. Qd3 {[%clk 0:02:44.3]} 13... Qc7 {[%clk
0:01:33.4]} 14. O-O {[%clk 0:02:38.2]} 14... Rad8 {[%clk 0:01:31]} 15. e4 {[%clk
0:02:34.4]} 15... Ne7 {[%clk 0:01:17.2]} 16. Rac1 {[%clk 0:02:30.3]} 16... d6
{[%clk 0:01:13.7]} 17. b4 {[%clk 0:02:26.6]} 17... Qb8 {[%clk 0:01:12.6]} 18.
Rfd1 {[%clk 0:02:24.2]} 18... Ng6 {[%clk 0:01:00.1]} 19. Qe3 {[%clk 0:02:11.8]}
19... Rfe8 {[%clk 0:00:53.1]} 20. h4 {[%clk 0:02:11]} 20... d5 {[%clk
0:00:33.1]} 21. exd5 {[%clk 0:01:59.3]} 21... exd5 {[%clk 0:00:34]} 22. Qg5
{[%clk 0:01:54.2]} 22... h6 {[%clk 0:00:28.5]} 23. Qg4 {[%clk 0:01:54.1]} 23...
Re4 {[%clk 0:00:22.3]} 24. Qh3 {[%clk 0:01:49.2]} 24... dxc4 {[%clk 0:00:18.4]}
25. Rxd8+ {[%clk 0:01:49.6]} 25... Qxd8 {[%clk 0:00:17.7]} 26. h5 {[%clk
0:01:50.2]} 26... Nf8 {[%clk 0:00:16.8]} 27. Nh4 {[%clk 0:01:45.2]} 27... Qd2
{[%clk 0:00:15.2]} 28. Rf1 {[%clk 0:01:43.9]} 28... c3 {[%clk 0:00:14.2]} 29.
Bxe4 {[%clk 0:01:36.6]} 29... Bxe4 {[%clk 0:00:15.1]} 30. Qg4 {[%clk 0:01:37.1]}
30... Bd3 {[%clk 0:00:14.5]} 31. Rd1 {[%clk 0:01:37]} 31... Qc2 {[%clk
0:00:08.2]} 32. Re1 {[%clk 0:01:35.9]} 32... Qd2 {[%clk 0:00:05.8]} 33. Qd1
{[%clk 0:01:36.2]} 33... Qxd1 {[%clk 0:00:03.7]} 34. Rxd1 {[%clk 0:01:36.2]}
34... c2 {[%clk 0:00:04.3]} 35. Rc1 {[%clk 0:01:36.5]} 35... Ne6 {[%clk
0:00:04.7]} 36. Nf3 {[%clk 0:01:36.3]} 36... Be4 {[%clk 0:00:03.9]} 37. Ne1
{[%clk 0:01:32.9]} 37... Nd4 {[%clk 0:00:04]} 38. Kf1 {[%clk 0:01:33.5]} 38...
Nb3 {[%clk 0:00:03.1]} 39. Rxc2 {[%clk 0:01:33]} 39... Bxc2 {[%clk 0:00:03.7]}
40. Nxc2 {[%clk 0:01:33.9]} 40... Nd2+ {[%clk 0:00:04.3]} 41. Ke2 {[%clk
0:01:33.4]} 41... Nc4 {[%clk 0:00:04.9]} 42. Kd3 {[%clk 0:01:33.8]} 42... Nd6
{[%clk 0:00:05.1]} 43. Kd4 {[%clk 0:01:33.3]} 43... Kf8 {[%clk 0:00:05.6]} 44.
Kd5 {[%clk 0:01:33.8]} 44... Ke7 {[%clk 0:00:06.2]} 45. Kc6 {[%clk 0:01:34.3]}
45... Ne4 {[%clk 0:00:06]} 46. Kb7 {[%clk 0:01:31.5]} 46... Nxf2 {[%clk
0:00:02.4]} 47. Kxa7 {[%clk 0:01:31.9]} 47... Ne4 {[%clk 0:00:02]} 48. g4 {[%clk
0:01:31.3]} 1-0

[Event "*** SCC Grand Prix: Titled Tuesday Blitz"]
[Site "Chess.com"]
[Date "2020.08.25"]
[Round "4"]
[White "BlackBoarder"]
[Black "Nara_Kh"]
[Result "1-0"]
[WhiteElo "2547"]
[BlackElo "2321"]
[TimeControl "180+1"]
[EndTime "10:40:07 PDT"]
[Termination "BlackBoarder won by resignation"]

1. e4 {[%clk 0:02:49.5]} 1... c5 {[%clk 0:02:59.7]} 2. Nf3 {[%clk 0:02:49.1]}
2... d6 {[%clk 0:02:59.8]} 3. c3 {[%clk 0:02:48.6]} 3... Nf6 {[%clk 0:02:59.2]}
4. h3 {[%clk 0:02:48.6]} 4... g6 {[%clk 0:02:58.8]} 5. Bd3 {[%clk 0:02:48.7]}
5... Bg7 {[%clk 0:02:58.1]} 6. Bc2 {[%clk 0:02:48.8]} 6... O-O {[%clk
0:02:57.8]} 7. O-O {[%clk 0:02:49.1]} 7... Qc7 {[%clk 0:02:54.2]} 8. d4 {[%clk
0:02:48.7]} 8... Rd8 {[%clk 0:02:53.8]} 9. Re1 {[%clk 0:02:47.1]} 9... b6 {[%clk
0:02:49.1]} 10. Bf4 {[%clk 0:02:44.4]} 10... Bb7 {[%clk 0:02:35.1]} 11. d5
{[%clk 0:02:38.1]} 11... b5 {[%clk 0:02:30]} 12. Nbd2 {[%clk 0:02:13.5]} 12...
a6 {[%clk 0:02:25]} 13. Nf1 {[%clk 0:02:01.1]} 13... Nbd7 {[%clk 0:02:12.5]} 14.
Qd2 {[%clk 0:01:57.2]} 14... Nb6 {[%clk 0:02:00.9]} 15. b3 {[%clk 0:01:47.7]}
15... e6 {[%clk 0:01:49.6]} 16. dxe6 {[%clk 0:01:41.7]} 16... fxe6 {[%clk
0:01:50.5]} 17. Rad1 {[%clk 0:01:40.3]} 17... e5 {[%clk 0:01:39.4]} 18. Bh6
{[%clk 0:01:35.7]} 18... Qe7 {[%clk 0:01:30.5]} 19. Bxg7 {[%clk 0:01:33.8]}
19... Kxg7 {[%clk 0:01:30.6]} 20. Ng3 {[%clk 0:01:32.2]} 20... Nbd7 {[%clk
0:01:18.3]} 21. Qxd6 {[%clk 0:01:25.7]} 21... Qxd6 {[%clk 0:00:57.4]} 22. Rxd6
{[%clk 0:01:24.8]} 22... Ne8 {[%clk 0:00:21.3]} 23. Rd2 {[%clk 0:01:17.9]} 23...
Kf7 {[%clk 0:00:21.3]} 24. Rxd7+ {[%clk 0:01:12.8]} 24... Rxd7 {[%clk
0:00:20.6]} 25. Nxe5+ {[%clk 0:01:13.1]} 25... Ke6 {[%clk 0:00:21.5]} 26. Nxd7
{[%clk 0:01:13.3]} 26... Kxd7 {[%clk 0:00:22.4]} 27. Rd1+ {[%clk 0:01:05.8]}
27... Ke6 {[%clk 0:00:22.4]} 28. f3 {[%clk 0:01:02.8]} 28... Nd6 {[%clk
0:00:12.2]} 29. Ne2 {[%clk 0:01:01.3]} 29... a5 {[%clk 0:00:11.8]} 30. Nf4+
{[%clk 0:00:58.8]} 30... Ke5 {[%clk 0:00:12.1]} 31. Nd3+ {[%clk 0:00:51.4]}
31... Ke6 {[%clk 0:00:06.3]} 32. Nxc5+ {[%clk 0:00:51.3]} 32... Ke7 {[%clk
0:00:06.6]} 33. e5 {[%clk 0:00:49.9]} 1-0

[Event "*** SCC Grand Prix: Titled Tuesday Blitz"]
[Site "Chess.com"]
[Date "2020.08.25"]
[Round "4"]
[White "GianmarcoVaR"]
[Black "1977Ivan"]
[Result "0-1"]
[WhiteElo "2476"]
[BlackElo "2691"]
[TimeControl "180+1"]
[EndTime "10:40:08 PDT"]
[Termination "1977Ivan won on time"]

1. d4 {[%clk 0:02:58]} 1... Nf6 {[%clk 0:02:59.6]} 2. Nf3 {[%clk 0:02:58.3]}
2... g6 {[%clk 0:02:55.8]} 3. c4 {[%clk 0:02:58.6]} 3... Bg7 {[%clk 0:02:55.8]}
4. g3 {[%clk 0:02:59.2]} 4... d6 {[%clk 0:02:54.1]} 5. Bg2 {[%clk 0:02:59.7]}
5... c6 {[%clk 0:02:49.3]} 6. O-O {[%clk 0:02:59.6]} 6... Qa5 {[%clk 0:02:49.8]}
7. h3 {[%clk 0:02:35.9]} 7... O-O {[%clk 0:02:48.2]} 8. Nc3 {[%clk 0:02:22.9]}
8... e5 {[%clk 0:02:35.5]} 9. e4 {[%clk 0:02:11.3]} 9... exd4 {[%clk 0:02:30.1]}
10. Nxd4 {[%clk 0:02:12.2]} 10... Qc5 {[%clk 0:02:29.1]} 11. Nb3 {[%clk
0:02:11.7]} 11... Qb4 {[%clk 0:02:23.7]} 12. Re1 {[%clk 0:01:26.8]} 12... a5
{[%clk 0:02:19.6]} 13. Nd2 {[%clk 0:01:23.4]} 13... a4 {[%clk 0:02:15]} 14. a3
{[%clk 0:01:23]} 14... Qa5 {[%clk 0:02:13.9]} 15. Nf1 {[%clk 0:01:21]} 15... Ne8
{[%clk 0:01:59.2]} 16. Bd2 {[%clk 0:01:11.2]} 16... Be6 {[%clk 0:01:53.8]} 17.
Ne3 {[%clk 0:01:06.3]} 17... Nd7 {[%clk 0:01:51.3]} 18. Qe2 {[%clk 0:00:57]}
18... Nc5 {[%clk 0:01:46]} 19. Red1 {[%clk 0:00:49.9]} 19... Nb3 {[%clk
0:01:45.1]} 20. Rab1 {[%clk 0:00:38.9]} 20... Nxd2 {[%clk 0:01:43.8]} 21. Qxd2
{[%clk 0:00:39.1]} 21... Qc5 {[%clk 0:01:40.2]} 22. Qc2 {[%clk 0:00:30.3]} 22...
Qa7 {[%clk 0:01:28]} 23. Rd2 {[%clk 0:00:23.8]} 23... h5 {[%clk 0:01:27.5]} 24.
h4 {[%clk 0:00:16.7]} 24... Bh6 {[%clk 0:01:25.3]} 25. Re1 {[%clk 0:00:15.8]}
25... Bxe3 {[%clk 0:01:13.6]} 26. Rxe3 {[%clk 0:00:12.6]} 26... Bxc4 {[%clk
0:01:14.1]} 27. Nd1 {[%clk 0:00:06]} 27... Bb3 {[%clk 0:01:10.5]} 28. Qc3 {[%clk
0:00:05.9]} 28... Qa5 {[%clk 0:01:08.1]} 29. Red3 {[%clk 0:00:04.3]} 29... Qxc3
{[%clk 0:01:06.2]} 30. Nxc3 {[%clk 0:00:04.5]} 30... Ra5 {[%clk 0:01:06]} 31.
Ne2 {[%clk 0:00:02.6]} 31... f6 {[%clk 0:01:02.5]} 32. Nd4 {[%clk 0:00:02.6]}
32... Bc4 {[%clk 0:01:01]} 33. Rc3 {[%clk 0:00:02.5]} 33... Bf7 {[%clk 0:01:01]}
34. Ne2 {[%clk 0:00:01.7]} 34... Kg7 {[%clk 0:00:58.6]} 35. Nf4 {[%clk
0:00:01.9]} 35... g5 {[%clk 0:00:56.8]} 0-1

[Event "*** SCC Grand Prix: Titled Tuesday Blitz"]
[Site "Chess.com"]
[Date "2020.08.25"]
[Round "4"]
[White "hansen"]
[Black "topotun"]
[Result "1-0"]
[WhiteElo "2943"]
[BlackElo "2721"]
[TimeControl "180+1"]
[EndTime "10:40:09 PDT"]
[Termination "hansen won on time"]

1. e4 {[%clk 0:03:00.9]} 1... c5 {[%clk 0:02:59.7]} 2. Nf3 {[%clk 0:02:57.8]}
2... e6 {[%clk 0:02:59.9]} 3. d4 {[%clk 0:02:56.7]} 3... cxd4 {[%clk 0:03:00.8]}
4. Nxd4 {[%clk 0:02:57.1]} 4... Nc6 {[%clk 0:03:01]} 5. Nc3 {[%clk 0:02:41]}
5... Qc7 {[%clk 0:03:00.6]} 6. Be3 {[%clk 0:02:41.1]} 6... a6 {[%clk 0:03:00.2]}
7. Qd2 {[%clk 0:02:36.6]} 7... Nf6 {[%clk 0:03:00.2]} 8. O-O-O {[%clk
0:02:32.1]} 8... b5 {[%clk 0:03:00]} 9. f3 {[%clk 0:02:28.8]} 9... Ne5 {[%clk
0:02:59.8]} 10. Kb1 {[%clk 0:02:24.1]} 10... Bb7 {[%clk 0:02:59.8]} 11. Bf4
{[%clk 0:02:15.9]} 11... Rc8 {[%clk 0:02:49.9]} 12. g4 {[%clk 0:01:53.2]} 12...
h6 {[%clk 0:02:45.5]} 13. h4 {[%clk 0:01:53.3]} 13... b4 {[%clk 0:02:43.2]} 14.
Na4 {[%clk 0:01:49.3]} 14... d5 {[%clk 0:02:42.6]} 15. exd5 {[%clk 0:01:13.1]}
15... Nxd5 {[%clk 0:02:41.3]} 16. Bh2 {[%clk 0:01:13.4]} 16... Bd6 {[%clk
0:02:23.2]} 17. g5 {[%clk 0:01:10.8]} 17... Qa5 {[%clk 0:01:28.9]} 18. b3 {[%clk
0:01:10.2]} 18... Nc3+ {[%clk 0:01:06.5]} 19. Nxc3 {[%clk 0:01:09]} 19... bxc3
{[%clk 0:01:07.4]} 20. Qc1 {[%clk 0:00:46.5]} 20... hxg5 {[%clk 0:00:44.1]} 21.
Nxe6 {[%clk 0:00:44.2]} 21... Ba3 {[%clk 0:00:23.5]} 22. Qxg5 {[%clk 0:00:31.6]}
22... Bd6 {[%clk 0:00:08.2]} 23. Rxd6 {[%clk 0:00:24.8]} 23... Qa3 {[%clk
0:00:08.2]} 24. Rd8+ {[%clk 0:00:24.9]} 1-0

[Event "*** SCC Grand Prix: Titled Tuesday Blitz"]
[Site "Chess.com"]
[Date "2020.08.25"]
[Round "4"]
[White "Azoulas1"]
[Black "pavelalexandru07"]
[Result "0-1"]
[WhiteElo "1955"]
[BlackElo "2214"]
[TimeControl "180+1"]
[EndTime "10:40:09 PDT"]
[Termination "pavelalexandru07 won by checkmate"]

1. e4 {[%clk 0:03:00.9]} 1... c5 {[%clk 0:02:59.4]} 2. Nf3 {[%clk 0:02:59.6]}
2... d6 {[%clk 0:02:59.3]} 3. d4 {[%clk 0:02:56.7]} 3... cxd4 {[%clk 0:02:59.3]}
4. Nxd4 {[%clk 0:02:57]} 4... Nf6 {[%clk 0:02:58.9]} 5. Nc3 {[%clk 0:02:56.8]}
5... a6 {[%clk 0:02:58.9]} 6. f3 {[%clk 0:02:54.6]} 6... e5 {[%clk 0:02:58.4]}
7. Nb3 {[%clk 0:02:52]} 7... Be6 {[%clk 0:02:55.5]} 8. Be3 {[%clk 0:02:52.4]}
8... h5 {[%clk 0:02:55.4]} 9. Qd2 {[%clk 0:02:51.9]} 9... Nbd7 {[%clk
0:02:55.2]} 10. O-O-O {[%clk 0:02:51.3]} 10... Be7 {[%clk 0:02:55.5]} 11. Be2
{[%clk 0:02:47.8]} 11... Rc8 {[%clk 0:02:54.4]} 12. Rhg1 {[%clk 0:02:47.3]}
12... b5 {[%clk 0:02:44]} 13. h4 {[%clk 0:02:35.4]} 13... Nb6 {[%clk 0:02:31.7]}
14. Kb1 {[%clk 0:02:20.8]} 14... b4 {[%clk 0:02:18.2]} 15. Bxb6 {[%clk
0:02:11.8]} 15... Qxb6 {[%clk 0:01:58.8]} 16. Nd5 {[%clk 0:02:10.4]} 16... Nxd5
{[%clk 0:01:49]} 17. exd5 {[%clk 0:02:10]} 17... Bf5 {[%clk 0:01:49.5]} 18. Bd3
{[%clk 0:02:09.4]} 18... Bxd3 {[%clk 0:01:49.9]} 19. Qxd3 {[%clk 0:02:08.4]}
19... a5 {[%clk 0:01:46.9]} 20. g4 {[%clk 0:02:06.6]} 20... a4 {[%clk
0:01:35.8]} 21. Nc1 {[%clk 0:01:56.3]} 21... a3 {[%clk 0:01:22.8]} 22. b3 {[%clk
0:01:50.5]} 22... Qc5 {[%clk 0:00:54]} 23. Ne2 {[%clk 0:01:40.1]} 23... Rc7
{[%clk 0:00:23.5]} 24. g5 {[%clk 0:01:37.4]} 24... g6 {[%clk 0:00:23.4]} 25.
Rge1 {[%clk 0:01:28.1]} 25... O-O {[%clk 0:00:23.1]} 26. f4 {[%clk 0:01:17.7]}
26... Rfc8 {[%clk 0:00:16.5]} 27. fxe5 {[%clk 0:01:07.1]} 27... Qxc2+ {[%clk
0:00:16]} 28. Qxc2 {[%clk 0:01:05.6]} 28... Rxc2 {[%clk 0:00:16.9]} 29. Ka1
{[%clk 0:01:05.3]} 29... dxe5 {[%clk 0:00:16.5]} 30. d6 {[%clk 0:01:02.5]} 30...
Bf8 {[%clk 0:00:16.2]} 31. Nc1 {[%clk 0:00:59.8]} 31... Bg7 {[%clk 0:00:15.9]}
32. Nd3 {[%clk 0:00:53.7]} 32... e4+ {[%clk 0:00:15.8]} 33. Kb1 {[%clk
0:00:50.8]} 33... exd3 {[%clk 0:00:12.1]} 34. d7 {[%clk 0:00:49.1]} 34... Rb2+
{[%clk 0:00:12.1]} 35. Ka1 {[%clk 0:00:47.5]} 35... Rxb3+ {[%clk 0:00:12.4]} 36.
Re5 {[%clk 0:00:42.6]} 36... Bxe5# {[%clk 0:00:13.3]} 0-1